bitfinex-derivatives/quotes_SOLF0:USTF0_20260312
["timestamp","ask_amount","ask_price","bid_price","bid_amount"]
[1773328714589,10.515,85.582,85.545,11.79235724]
[1773328715394,10.516,85.575,85.531,22.31335724]
[1773328715598,10.516,85.575,85.532,11.79235724]
[1773328715802,10.516,85.575,85.533,10.521]
[1773328716099,10.516,85.575,85.534,11.79235724]
[1773328716297,10.517,85.569,85.534,11.79235724]
[1773328716997,7.5010207,85.56,85.517,11.79235724]
[1773328717299,3.49599457,85.57,85.521,11.79235724]
[1773328717696,3.49599457,85.56,85.521,11.79235724]
[1773328718600,3.49599457,85.55,85.503,11.79235724]
[1773328718795,163.52,85.612,85.503,11.79235724]
[1773328718796,4.03319702,85.568,85.503,11.79235724]
[1773328718997,4.03319702,85.568,85.511,11.79235724]
[1773328719194,3.49599457,85.56,85.511,11.79235724]
[1773328719703,4.03319702,85.568,85.511,11.79235724]
[1773328719905,4.03319702,85.568,85.512,11.79235724]
[1773328720105,4.03319702,85.568,85.469,21.059]
[1773328720106,3.98184225,85.539,85.476,11.79235724]
[1773328720494,3.98184225,85.539,85.46,11.79235724]
[1773328721397,3.98184225,85.539,85.462,11.79235724]
[1773328722508,3.98184225,85.539,85.476,11.79235724]
[1773328723297,10.521,85.536,85.479,11.79235724]
[1773328723505,3.98184225,85.539,85.479,11.79235724]
[1773328723896,10.522,85.528,85.48,10.528]
[1773328724101,10.522,85.528,85.481,12.44823475]
[1773328724709,10.521,85.538,85.485,12.44823475]
[1773328725007,4.26865492,85.579,85.485,12.44823475]
[1773328725203,4.26865492,85.579,85.446,21.064]
[1773328725204,4.26865492,85.579,85.509,12.44823475]
[1773328725403,4.26865492,85.599,85.509,12.44823475]
[1773328726307,4.26865492,85.599,85.5,9.36800596]
[1773328726308,4.26865492,85.599,85.527,12.44823475]
[1773328726701,4.26084345,85.619,85.527,12.44823475]
[1773328727300,4.25153425,85.599,85.521,12.44823475]
[1773328728209,10.516,85.576,85.523,12.44823475]
[1773328728706,4.25968173,85.619,85.523,12.44823475]
[1773328729307,4.25968173,85.619,85.52,9.36800596]
[1773328729308,10.515,85.588,85.543,12.44823475]
[1773328729910,9.36800596,85.6,85.521,12.44823475]
[1773328730106,4.43100335,85.599,85.521,12.44823475]
[1773328730507,4.43100335,85.599,85.525,12.23964341]
[1773328730707,10.516,85.579,85.525,12.23964341]
[1773328731308,10.517,85.572,85.527,22.76164341]
[1773328731510,10.517,85.572,85.527,12.23964341]
[1773328732512,9.95848793,85.598,85.547,12.23964341]
[1773328732712,4.45211344,85.611,85.547,12.23964341]
[1773328734014,10.513,85.597,85.55,12.23964341]
[1773328734615,10.513,85.597,85.552,12.23964341]
[1773328735716,10.512,85.606,85.555,12.23964341]
[1773328736309,10.512,85.607,85.556,12.23964341]
[1773328737310,286.55827623,85.627,85.54,9.36800596]
[1773328737311,286.55827623,85.627,85.567,12.23964341]
[1773328738817,10.51,85.626,85.57,12.23964341]
[1773328739419,286.55827623,85.627,85.574,12.23964341]
[1773328739822,4.40272924,85.626,85.556,12.23964341]
[1773328740020,4.40272924,85.604,85.539,12.23964341]
[1773328740423,4.3948294,85.62,85.539,12.23964341]
[1773328740825,10.514,85.592,85.539,12.23964341]
[1773328741624,4.3948294,85.62,85.542,12.23964341]
[1773328741819,4.31789332,85.609,85.542,12.23964341]
[1773328742019,10.514,85.594,85.542,12.23964341]
[1773328742820,4.31789332,85.609,85.542,12.23964341]
[1773328743421,286.55827623,85.627,85.558,12.23964341]
[1773328743620,286.55827623,85.627,85.561,12.23964341]
[1773328743817,4.42436685,85.658,85.561,12.23964341]
[1773328744123,10.509,85.635,85.585,12.23964341]
[1773328744319,4.42436685,85.658,85.585,12.23964341]
[1773328745721,10.508,85.644,85.589,12.23964341]
[1773328745919,4.42436685,85.658,85.589,12.23964341]
[1773328746127,10.506,85.654,85.603,12.23964341]
[1773328746520,4.45495048,85.669,85.603,12.23964341]
[1773328747825,10.507,85.646,85.603,12.23964341]
[1773328749224,4.43915353,85.686,85.605,12.23964341]
[1773328749727,10.505,85.664,85.62,12.23964341]
[1773328750128,4.45222949,85.67,85.601,12.23964341]
[1773328750329,10.505,85.664,85.613,12.23964341]
[1773328750525,4.45222949,85.687,85.613,12.23964341]
[1773328750926,9.36800596,85.69,85.613,12.23964341]
[1773328750927,10.506,85.657,85.613,12.23964341]
[1773328751925,4.45226054,85.669,85.6,9.36800596]
[1773328751926,10.507,85.65,85.6,9.36800596]
[1773328752126,4.45226054,85.669,85.595,12.23964341]
[1773328753528,4.45226054,85.669,85.58,49.82800596]
[1773328753529,10.505,85.663,85.611,10.512]
[1773328753833,10.505,85.663,85.612,12.23964341]
[1773328754528,10.506,85.656,85.612,12.23964341]
[1773328754735,4.57294165,85.68,85.612,12.23964341]
[1773328755426,21.003,85.698,85.591,12.23964341]
[1773328755427,4.56621528,85.669,85.591,12.23964341]
[1773328756832,4.56139713,85.689,85.611,12.23964341]
[1773328757428,4.5547423,85.685,85.611,12.23964341]
[1773328758232,4.55785697,85.681,85.611,12.23964341]
[1773328759833,10.507,85.647,85.611,12.23964341]
[1773328760033,4.55785697,85.681,85.611,12.23964341]
[1773328760333,10.504,85.671,85.621,12.17029542]
[1773328760835,4.55785697,85.681,85.621,12.17029542]
[1773328761038,10.504,85.671,85.625,12.17029542]
[1773328761432,4.55785697,85.681,85.609,12.17029542]
[1773328761637,3.48936498,85.66,85.609,12.17029542]
[1773328761838,3.48936498,85.67,85.611,12.17029542]
[1773328762332,3.48936498,85.66,85.613,12.17029542]
[1773328764237,8.06226563,85.716,85.621,12.17029542]
[1773328764433,8.06226563,85.739,85.68,3.48936498]
[1773328764637,3.48936498,85.73,85.672,12.17029542]
[1773328764936,3.48936498,85.73,85.68,3.48936498]
[1773328765134,10.497,85.729,85.681,12.17029542]
[1773328766237,8.06226563,85.739,85.681,12.17029542]
[1773328766640,3.48327066,85.73,85.681,12.17029542]
[1773328766836,3.48327066,85.72,85.67,3.48327066]
[1773328767140,3.48327066,85.71,85.65,3.48327066]
[1773328767341,3.48327066,85.71,85.66,3.48327066]
[1773328767540,7.91139854,85.703,85.651,12.17029542]
[1773328767936,9.33682449,85.72,85.651,12.17029542]
[1773328768140,7.91139854,85.721,85.651,12.17029542]
[1773328769037,10.499,85.714,85.654,12.17029542]
[1773328769439,10.5,85.706,85.654,12.17029542]
[1773328770140,10.499,85.715,85.656,12.17029542]
[1773328771037,10.5,85.705,85.656,12.17029542]
[1773328773846,10.499,85.715,85.656,12.17029542]
[1773328774850,10.499,85.715,85.659,12.17029542]
[1773328775950,9.33682449,85.72,85.661,12.17029542]
[1773328776346,10.498,85.724,85.661,12.17029542]
[1773328776647,10.498,85.724,85.664,12.17029542]
[1773328777851,10.498,85.724,85.668,12.17029542]
[1773328779653,10.499,85.717,85.668,12.17029542]
[1773328779949,9.33682449,85.72,85.668,12.17029542]
[1773328780854,10.5,85.707,85.668,12.17029542]
[1773328781247,10.5,85.707,85.664,10.505]
[1773328781449,8.13267825,85.719,85.652,12.17029542]
[1773328781753,8.13267825,85.719,85.662,10.505]
[1773328781754,10.501,85.701,85.662,10.505]
[1773328783046,10.501,85.694,85.655,10.506]
[1773328783248,8.10491911,85.699,85.647,12.17029542]
[1773328783551,8.10491911,85.699,85.618,12.17029542]
[1773328783950,8.10204031,85.714,85.643,11.57678317]
[1773328784959,10.5,85.706,85.661,10.505]
[1773328785157,10.5,85.706,85.661,22.08178317]
[1773328785353,10.5,85.706,85.662,11.57678317]
[1773328786954,10.5,85.706,85.665,10.505]
[1773328788159,10.499,85.713,85.67,10.504]
[1773328788753,10.499,85.713,85.673,10.504]
[1773328789060,10.498,85.72,85.674,11.57678317]
[1773328789656,10.499,85.714,85.674,11.57678317]
[1773328791964,8.04119547,85.699,85.628,11.44030607]
[1773328792460,8.04119547,85.699,85.648,10.507]
[1773328792658,8.04119547,85.699,85.649,11.44030607]
[1773328793058,10.501,85.696,85.649,21.94730607]
[1773328793257,8.03651704,85.696,85.635,11.44030607]
[1773328793858,10.503,85.685,85.635,11.44030607]
[1773328794264,8.03651704,85.696,85.635,11.44030607]
[1773328794868,10.502,85.689,85.646,10.507]
[1773328796763,10.503,85.68,85.64,11.44030607]
[1773328796967,9.33682449,85.69,85.64,11.44030607]
[1773328797361,7.76013559,85.689,85.64,11.44030607]
[1773328797566,7.76013559,85.689,85.624,11.44030607]
[1773328797761,10.506,85.66,85.624,11.44030607]
[1773328797963,10.506,85.66,85.604,40.42]
[1773328798268,7.73143008,85.669,85.609,11.44030607]
[1773328798468,10.506,85.661,85.611,10.512]
[1773328798668,7.73143008,85.669,85.612,11.44030607]
[1773328798866,9.33682449,85.67,85.612,11.44030607]
[1773328799268,7.73144121,85.684,85.628,11.44030607]
[1773328800264,10.505,85.667,85.628,11.44030607]
[1773328800564,7.73144121,85.684,85.628,11.44030607]
[1773328800765,10.503,85.683,85.631,11.44030607]
[1773328800960,7.73144121,85.684,85.631,11.44030607]
[1773328801270,7.73144121,85.684,85.621,40.42]
[1773328801470,10.505,85.666,85.621,40.42]
[1773328802272,10.505,85.666,85.617,10.511]
[1773328802470,10.505,85.666,85.618,11.44030607]
[1773328803265,7.63957911,85.687,85.622,11.44030607]
[1773328804375,7.63957911,85.687,85.642,11.44030607]
[1773328805073,7.63957911,85.687,85.626,11.44030607]
[1773328806766,10.503,85.685,85.63,11.44030607]
[1773328807868,10.503,85.685,85.637,11.44030607]
[1773328808578,10.502,85.693,85.641,11.44030607]
[1773328809470,10.502,85.686,85.641,11.44030607]
[1773328810776,10.503,85.681,85.636,10.509]
[1773328811178,7.53626559,85.685,85.627,11.44030607]
[1773328811371,7.53626559,85.685,85.634,10.509]
[1773328811575,18.03926559,85.685,85.635,11.44030607]
[1773328812578,7.53626559,85.685,85.635,11.44030607]
[1773328812775,7.56637734,85.679,85.613,11.44030607]
[1773328813278,10.506,85.654,85.614,10.511]
[1773328813471,7.56637734,85.679,85.615,11.44030607]
[1773328814071,10.505,85.667,85.615,11.44030607]
[1773328814681,7.56637734,85.679,85.615,11.44030607]
[1773328815376,7.56637734,85.679,85.601,40.42]
[1773328815377,7.56637734,85.679,85.634,10.509]
[1773328815581,7.56637734,85.679,85.628,11.44030607]
[1773328815783,10.504,85.676,85.633,10.509]
[1773328816183,10.504,85.676,85.628,11.44030607]
[1773328816184,7.53447482,85.676,85.628,11.44030607]
[1773328817078,7.53447482,85.676,85.619,10.511]
[1773328817481,7.53447482,85.676,85.614,11.44030607]
[1773328818876,10.506,85.658,85.614,11.44030607]
[1773328819078,7.52550027,85.659,85.582,11.44030607]
[1773328819679,10.507,85.652,85.604,11.44030607]
[1773328820989,10.507,85.646,85.609,11.2889849]
[1773328821788,10.507,85.646,85.601,10.513]
[1773328822088,10.507,85.646,85.602,11.2889849]
[1773328822275,7.52550027,85.659,85.604,11.2889849]
[1773328823387,7.44502867,85.64,85.59,11.2889849]
[1773328824085,7.40602499,85.639,85.59,11.2889849]
[1773328824288,10.509,85.631,85.591,10.514]
[1773328824890,7.40604781,85.654,85.598,11.2889849]
[1773328825588,10.506,85.654,85.61,11.2889849]
[1773328825986,7.39044057,85.678,85.61,11.2889849]
[1773328826285,7.38901953,85.665,85.61,11.2889849]
[1773328826488,7.38904283,85.659,85.61,11.2889849]
[1773328826688,10.507,85.648,85.61,11.2889849]
[1773328827084,7.38904283,85.659,85.586,11.2889849]
[1773328827283,10.508,85.638,85.589,11.2889849]
[1773328828893,10.508,85.638,85.595,10.514]
[1773328829300,7.3875412,85.644,85.589,11.2889849]
[1773328829696,10.508,85.643,85.6,10.513]
[1773328830599,10.508,85.643,85.593,11.2889849]
[1773328831498,7.3875412,85.644,85.593,11.2889849]
[1773328831997,7.3875412,85.644,85.597,11.2889849]
[1773328833004,10.508,85.638,85.597,11.2889849]
[1773328835702,3.49111886,85.63,85.597,11.2889849]
[1773328836805,3.49111886,85.63,85.6,10.513]
[1773328837100,3.49111886,85.64,85.6,10.513]
[1773328837309,7.22529428,85.676,85.608,11.2889849]
[1773328837496,3.49111886,85.66,85.611,11.2889849]
[1773328838006,3.49111886,85.66,85.626,10.51]
[1773328838505,10.71641314,85.669,85.611,11.2889849]
[1773328838802,10.71641314,85.669,85.624,10.51]
[1773328839002,3.49111886,85.67,85.625,11.2889849]
[1773328839202,10.504,85.677,85.625,11.2889849]
[1773328839401,10.504,85.677,85.547,35.1]
[1773328839402,10.718165,85.698,85.641,11.2889849]
[1773328839904,3.49111886,85.69,85.641,11.2889849]
[1773328840216,3.49111886,85.69,85.648,10.507]
[1773328840607,13.99311886,85.69,85.648,10.507]
[1773328841502,40.44,85.727,85.641,11.2889849]
[1773328841503,3.49111886,85.68,85.641,11.2889849]
[1773328841703,10.86370332,85.689,85.618,11.2889849]
[1773328842002,9.34137978,85.7,85.618,11.2889849]
[1773328842003,10.80958012,85.679,85.618,11.2889849]
[1773328843209,10.505,85.662,85.62,11.2889849]
[1773328843908,10.504,85.67,85.621,10.51]
[1773328844107,10.504,85.67,85.622,11.92201302]
[1773328844908,10.504,85.67,85.624,10.51]
[1773328845410,10.505,85.663,85.622,11.92201302]
[1773328845603,10.80958012,85.679,85.607,11.92201302]
[1773328846206,10.506,85.657,85.608,11.92201302]
[1773328846711,10.73454562,85.666,85.608,11.92201302]
[1773328847406,10.507,85.65,85.608,11.92201302]
[1773328848207,10.506,85.657,85.61,11.92201302]
[1773328850008,10.506,85.657,85.611,11.92201302]
[1773328852311,10.507,85.649,85.611,11.92201302]
[1773328852707,10.09786492,85.659,85.581,11.56381094]
[1773328853401,10.09786492,85.659,85.596,11.56381094]
[1773328854413,10.09869566,85.647,85.596,11.56381094]
[1773328855305,10.509,85.629,85.596,11.56381094]
[1773328855505,10.09869566,85.647,85.596,11.56381094]
[1773328856111,9.34137978,85.66,85.581,11.56381094]
[1773328856112,10.10599574,85.636,85.581,11.56381094]
[1773328856815,10.10599574,85.636,85.583,11.56381094]
[1773328857915,10.51,85.628,85.583,11.56381094]
[1773328859012,10.51,85.621,85.583,11.56381094]
[1773328859812,10.51,85.629,85.584,10.515]
[1773328860015,10.51,85.629,85.585,11.56381094]
[1773328860617,10.10599574,85.636,85.591,11.56381094]
[1773328861814,3.49135484,85.62,85.576,11.56381094]
[1773328862418,10.14263199,85.629,85.579,11.56381094]
[1773328862809,10.05279921,85.66,85.59,11.56381094]
[1773328862810,10.14345959,85.639,85.59,11.56381094]
[1773328863016,10.509,85.629,85.592,10.514]
[1773328863417,10.14438074,85.629,85.59,11.56381094]
[1773328863617,3.49135484,85.62,85.578,11.56381094]
[1773328863818,3.49135484,85.61,85.578,11.56381094]
[1773328864312,3.49135484,85.6,85.562,11.56381094]
[1773328864512,3.49135484,85.6,85.521,21.046]
[1773328864513,10.18243339,85.599,85.547,11.56381094]
[1773328864709,3.49135484,85.59,85.547,11.56381094]
[1773328865020,3.49135484,85.61,85.561,11.56381094]
[1773328865216,3.49135484,85.64,85.58,3.49135484]
[1773328865523,10.18333884,85.639,85.591,11.56381094]
[1773328866021,10.511,85.619,85.576,11.56381094]
[1773328867011,10.512,85.611,85.576,11.56381094]
[1773328867211,3.49135484,85.6,85.551,11.56381094]
[1773328867521,10.515,85.587,85.542,11.56381094]
[1773328867722,3.49135484,85.6,85.542,11.56381094]
[1773328868121,10.514,85.589,85.544,10.52]
[1773328868316,10.514,85.589,85.542,11.56381094]
[1773328868317,3.49135484,85.59,85.545,11.56381094]
[1773328868515,3.49135484,85.58,85.545,11.56381094]
[1773328869222,10.516,85.577,85.545,11.56381094]
[1773328869827,10.19331028,85.605,85.545,11.56381094]
[1773328870326,10.512,85.609,85.563,11.56381094]
[1773328870717,10.1940831,85.619,85.563,11.56381094]
[1773328871431,10.513,85.599,85.563,11.56381094]
[1773328871817,10.1940831,85.619,85.563,11.56381094]
[1773328872029,10.1940831,85.619,85.554,40.46]
[1773328872524,10.1940831,85.619,85.554,52.02381094]
[1773328872924,10.1940831,85.619,85.555,11.56381094]
[1773328873925,10.512,85.61,85.565,11.56381094]
[1773328875224,20.7050831,85.619,85.567,11.56381094]
[1773328875426,10.1940831,85.619,85.567,11.56381094]
[1773328876523,10.29818535,85.634,85.572,11.56381094]
[1773328876726,10.51,85.629,85.581,11.56381094]
[1773328876926,280.02539937,85.655,85.581,11.56381094]
[1773328876927,10.29891085,85.654,85.581,11.56381094]
[1773328877134,10.29891085,85.654,85.583,11.56381094]
[1773328877529,10.29891085,85.654,85.606,11.56381094]
[1773328877936,10.45742515,85.688,85.62,9.36196996]
[1773328878136,10.45742515,85.688,85.621,40.46]
[1773328878338,58.23529411,85.687,85.621,40.46]
[1773328878734,40.25529411,85.687,85.621,40.46]
[1773328879436,40.25529411,85.687,85.62,9.36196996]
[1773328879632,40.25529411,85.687,85.621,40.46]
[1773328880027,10.503,85.685,85.632,10.509]
[1773328880439,10.503,85.685,85.621,40.46]
[1773328880440,9.36196996,85.7,85.619,40.46]
[1773328880636,9.36196996,85.7,85.616,40.46]
[1773328880935,49.46807895,85.699,85.616,40.46]
[1773328881535,40.46,85.715,85.609,50.972]
[1773328881536,10.505,85.663,85.609,50.972]
[1773328881737,49.46807895,85.668,85.609,40.46]
[1773328882132,49.47379805,85.667,85.6,9.36196996]
[1773328882436,49.47379805,85.683,85.6,9.36196996]
[1773328882635,49.47379805,85.683,85.601,40.46]
[1773328882825,59.97691303,85.671,85.617,10.511]
[1773328883934,49.47291303,85.671,85.624,10.51]
[1773328885232,49.47291303,85.671,85.616,10.511]
[1773328886838,10.504,85.67,85.616,10.511]
[1773328887038,59.94649753,85.67,85.616,10.511]
[1773328888140,49.44249753,85.67,85.623,10.51]
[1773328888540,49.43805326,85.692,85.61,9.34381176]
[1773328888840,49.43805326,85.692,85.611,40.44]
[1773328889834,49.44127988,85.682,85.592,21.028]
[1773328890030,49.44127988,85.682,85.51,50.48794091]
[1773328890031,49.44127988,85.682,85.593,40.44]
[1773328890335,49.44127988,85.682,85.594,40.44]
[1773328890535,49.44127988,85.666,85.616,10.511]
[1773328890734,49.44127988,85.666,85.607,40.44]
[1773328891928,49.44127988,85.666,85.623,10.51]
[1773328893042,59.91871502,85.675,85.623,10.51]
[1773328895439,49.41222107,85.667,85.623,10.51]
[1773328896638,49.41222107,85.667,85.63,10.509]
[1773328896839,49.41222107,85.667,85.61,40.44]
[1773328897541,49.41222107,85.667,85.63,10.509]
[1773328897746,49.4238514,85.683,85.61,9.34381176]
[1773328898045,49.4238514,85.683,85.59,9.34381176]
[1773328898232,49.4238514,85.676,85.63,10.509]
[1773328898437,49.4238514,85.676,85.591,40.44]
[1773328898637,49.4238514,85.676,85.61,9.34381176]
[1773328898836,49.4238514,85.676,85.641,10.508]
[1773328899034,49.42298967,85.703,85.61,9.34381176]
[1773328899240,49.42298967,85.703,85.611,40.44]
[1773328899641,49.42120278,85.697,85.646,10.507]
[1773328899836,49.42120278,85.697,85.611,40.44]
[1773328900038,49.42120278,85.697,85.63,9.34381176]
[1773328900236,49.42120278,85.697,85.631,40.44]
[1773328900838,49.42120278,85.697,85.65,10.507]
[1773328901946,59.95718059,85.695,85.631,40.44]
[1773328902440,49.45618059,85.695,85.641,10.508]
[1773328902746,49.45618059,85.695,85.631,40.44]
[1773328903246,49.45618059,85.695,85.641,10.508]
[1773328904544,10.503,85.685,85.641,10.508]
[1773328904748,49.45866835,85.684,85.641,10.508]
[1773328906047,49.45866835,85.684,85.648,10.507]
[1773328906645,59.94589845,85.683,85.627,40.44]
[1773328906849,49.44289845,85.683,85.627,40.44]
[1773328907546,9.34381176,85.71,85.627,40.44]
[1773328907547,49.44289845,85.68,85.627,40.44]
[1773328908452,49.45200712,85.709,85.627,40.44]
[1773328909149,49.45135745,85.698,85.654,10.506]
[1773328909354,49.45135745,85.698,85.627,40.44]
[1773328909750,49.45135745,85.698,85.652,10.507]
[1773328910857,20.993,85.737,85.627,40.44]
[1773328910858,49.15300976,85.711,85.63,9.34381176]
[1773328911257,49.15300976,85.711,85.631,40.42]
[1773328911752,49.14547583,85.699,85.631,40.42]
[1773328912457,49.14547583,85.692,85.631,40.42]
[1773328912652,49.14547583,85.692,85.61,9.34381176]
[1773328912853,49.14547583,85.692,85.611,40.42]
[1773328913246,9.34381176,85.72,85.664,10.505]
[1773328913247,49.14404633,85.707,85.664,10.505]
[1773328913557,49.14404633,85.707,85.658,40.42]
[1773328913963,49.21415339,85.69,85.658,40.42]
[1773328914953,49.21415339,85.69,85.603,21.026]
[1773328914954,49.21294085,85.681,85.635,10.509]
[1773328915154,49.21294085,85.681,85.603,21.026]
[1773328915354,49.21294085,85.679,85.6,9.34381176]
[1773328915555,49.22314672,85.66,85.614,10.511]
[1773328916965,49.22314672,85.66,85.606,10.512]
[1773328917966,49.23577966,85.657,85.606,10.512]
[1773328918361,49.23577966,85.657,85.604,40.42]
[1773328918362,49.23577966,85.657,85.613,10.511]
[1773328918562,49.23577966,85.657,85.604,40.42]
[1773328919170,49.23577966,85.657,85.614,10.511]
[1773328919968,49.23577966,85.657,85.622,10.51]
[1773328920163,49.23231973,85.679,85.616,40.42]
[1773328920362,49.23231973,85.679,85.58,30.37481176]
[1773328920363,49.23231973,85.679,85.617,40.42]
[1773328920567,49.23231973,85.677,85.618,40.42]
[1773328921267,9.34381176,85.68,85.618,40.42]
[1773328921268,49.23124992,85.654,85.618,40.42]
[1773328921765,49.20132021,85.645,85.56,9.34381176]
[1773328921968,49.20132021,85.645,85.561,40.42]
[1773328922968,49.20020656,85.63,85.561,40.42]
[1773328923371,10.511,85.617,85.562,40.44]
[1773328923567,49.20020656,85.616,85.562,40.44]
[1773328924070,49.20020656,85.616,85.571,10.517]
[1773328924464,49.16157005,85.633,85.56,9.34381176]
[1773328924764,49.16157005,85.633,85.561,40.44]
[1773328925263,49.1603964,85.631,85.562,40.44]
[1773328925869,49.15585437,85.629,85.578,10.516]
[1773328926968,49.15585437,85.629,85.569,10.517]
[1773328927170,49.15469941,85.616,85.52,9.34381176]
[1773328927364,49.15469941,85.616,85.545,40.44]
[1773328928668,49.13415923,85.612,85.545,40.44]
[1773328928974,49.13415923,85.628,85.546,40.44]
[1773328929171,49.13415923,85.628,85.56,9.34381176]
[1773328929362,49.13415923,85.628,85.587,10.514]
[1773328929563,49.13415923,85.628,85.588,40.44]
[1773328929760,49.13415923,85.628,85.589,50.954]
[1773328931072,49.09698139,85.626,85.569,40.44]
[1773328931270,49.09698139,85.626,85.54,9.34381176]
[1773328931271,49.09698139,85.626,85.57,40.44]
[1773328931666,49.09698139,85.626,85.576,10.516]
[1773328931869,49.09698139,85.626,85.57,40.44]
[1773328932369,49.09698139,85.626,85.591,10.514]
[1773328933469,28.91656145,85.619,85.567,40.44]
[1773328934869,28.91656145,85.619,85.567,50.957]
[1773328935077,28.91656145,85.619,85.567,40.44]
[1773328936178,28.89981782,85.618,85.567,40.44]
[1773328937174,28.89818953,85.636,85.567,40.44]
[1773328937478,28.89818953,85.636,85.568,40.44]
[1773328939781,28.86043336,85.653,85.608,10.512]
[1773328941476,28.85677921,85.679,85.58,9.34381176]
[1773328941681,28.85677921,85.679,85.581,40.44]
[1773328942381,28.85677921,85.679,85.56,9.34381176]
[1773328942382,28.85677921,85.679,85.6,9.34381176]
[1773328942680,28.86568622,85.677,85.627,10.51]
[1773328944183,28.86646663,85.671,85.624,40.44]
[1773328947486,28.86090991,85.698,85.624,40.44]
[1773328947784,28.86090991,85.698,85.625,40.44]
[1773328947984,28.86090991,85.698,85.626,40.44]
[1773328948387,28.85824659,85.693,85.61,9.34005553]
[1773328948586,28.85824659,85.693,85.611,40.44]
[1773328949188,28.85679941,85.708,85.63,9.34005553]
[1773328949385,28.85679941,85.708,85.631,40.44]
[1773328949683,28.84098366,85.727,85.672,10.504]
[1773328950784,28.84098366,85.727,85.679,10.503]
[1773328951790,28.84098366,85.727,85.669,40.44]
[1773328951791,28.84098366,85.727,85.68,40.44]
[1773328952088,28.84098366,85.727,85.681,40.44]
[1773328952389,28.84098366,85.727,85.684,10.503]
[1773328952886,28.79755776,85.719,85.598,35.05]
[1773328953092,28.79755776,85.719,85.62,9.34005553]
[1773328953392,28.79755776,85.705,85.62,9.34005553]
[1773328953591,28.79755776,85.719,85.64,9.34005553]
[1773328953885,28.79755776,85.719,85.641,40.44]
[1773328955181,28.81431486,85.735,85.641,40.44]
[1773328955487,28.81431486,85.735,85.644,21.016]
[1773328955691,28.81431486,85.735,85.65,9.34005553]
[1773328956294,28.81431486,85.735,85.682,10.503]
[1773328958192,28.81431486,85.735,85.69,10.502]
[1773328958884,28.86058473,85.733,85.681,10.503]
[1773328960788,28.86152493,85.731,85.677,40.42]
[1773328960985,28.86152493,85.729,85.677,40.42]
[1773328961386,28.86152493,85.726,85.677,40.42]
[1773328962687,28.85792286,85.725,85.677,50.923]
[1773328963685,9.34005553,85.73,85.677,40.42]
[1773328963686,28.87688545,85.722,85.677,40.42]
[1773328964285,28.87688545,85.711,85.677,40.42]
[1773328964490,28.87688545,85.711,85.658,10.506]
[1773328965494,28.87577605,85.71,85.665,10.505]
[1773328966493,28.87577605,85.71,85.654,40.42]
[1773328968099,28.68325634,85.729,85.67,10.504]
[1773328968901,10.499,85.716,85.67,10.504]
[1773328969290,16.29264724,85.74,85.665,40.42]
[1773328969490,16.29264724,85.74,85.68,9.34005553]
[1773328969794,16.29264724,85.74,85.681,40.42]
[1773328970194,16.29264724,85.74,85.682,40.42]
[1773328970998,16.29264724,85.74,85.711,10.499]
[1773328971601,16.29264724,85.74,85.704,10.5]
[1773328971797,16.29264724,85.74,85.682,40.42]
[1773328972999,16.29264724,85.74,85.699,10.501]
[1773328973498,0.00064724,85.74,85.682,40.42]
[1773328974396,28.92515401,85.74,85.682,40.42]
[1773328975806,28.92515401,85.74,85.708,10.5]
[1773328976502,0.00064724,85.74,85.708,10.5]
[1773328977298,0.00064724,85.74,85.715,10.499]
[1773328977511,0.00064724,85.74,85.682,40.42]
[1773328978799,28.95393294,85.739,85.682,40.42]
[1773328979306,28.95393294,85.738,85.69,10.502]
[1773328979597,28.95393294,85.738,85.66,9.34005553]
[1773328979802,28.95393294,85.738,85.661,40.4]
[1773328980300,28.93611531,85.728,85.661,40.4]
[1773328981098,28.93611531,85.728,85.681,10.503]
[1773328981804,28.89282348,85.722,85.661,40.4]
[1773328982205,28.89282348,85.721,85.661,40.4]
[1773328982603,28.89282348,85.736,85.661,40.4]
[1773328982804,28.89282348,85.736,85.66,9.34005553]
[1773328983103,28.89282348,85.736,85.661,40.4]